bitfinex-derivatives/quotes_ETHF0:USTF0_20250114
["timestamp","ask_amount","ask_price","bid_price","bid_amount"]
[1736843232283,0.4803,3180.1,3179.9,0.3146]
[1736843232284,0.31461,3180.0,3179.9,0.3146]
[1736843233781,3.52238,3180.2,3180.1,0.31459]
[1736843233985,3.2078,3180.2,3180.1,0.31459]
[1736843234681,0.77234,3180.6,3180.1,3.2078]
[1736843234993,0.77234,3180.6,3180.5,0.31455]
[1736843235488,0.4578,3180.6,3180.5,0.31455]
[1736843235982,0.77234,3180.6,3180.5,0.31455]
[1736843236190,0.4578,3180.6,3180.1,3.2078]
[1736843236483,0.77235,3180.6,3180.5,0.31455]
[1736843236689,0.4578,3180.6,3180.5,0.31455]
[1736843236986,0.77234,3180.6,3180.5,0.31455]
[1736843237886,0.31454,3180.6,3180.5,0.31455]
[1736843239784,2.97929814,3180.8,3180.1,3.2078]
[1736843239989,0.79703,3180.8,3180.7,0.31453]
[1736843240889,0.31454,3180.7,3180.6,0.31454]
[1736843242880,0.79703,3180.8,3180.2,3.99426]
[1736843243084,0.4825,3180.8,3180.2,3.99426]
[1736843243482,0.31456,3180.6,3180.5,0.31454]
[1736843246493,3.2078,3180.9,3180.3,2.49679814]
[1736843246690,1.57195,3182.2,3181.3,0.31447]
[1736843246691,0.4674,3181.4,3181.3,0.31447]
[1736843246897,0.4691,3181.6,3181.5,0.31445]
[1736843247088,0.31444,3181.7,3181.6,0.31443]
[1736843247695,0.31445,3181.6,3181.5,0.31445]
[1736843248690,0.31445,3181.6,3181.1,0.78622]
[1736843248691,3.77079814,3181.6,3180.4,3.2078]
[1736843248898,0.31455,3180.6,3180.5,0.31454]
[1736843249198,3.2078,3180.7,3180.2,0.31457]
[1736843249390,0.31459,3180.2,3180.1,0.31459]
[1736843249693,0.31458,3180.3,3180.2,0.31457]
[1736843250690,0.31456,3180.4,3180.2,0.31458]
[1736843250890,0.4498,3180.5,3180.2,0.31458]
[1736843251193,0.31459,3180.3,3180.2,0.31458]
[1736843252600,0.4498,3180.5,3179.9,4.44812]
[1736843252792,0.31457,3180.4,3180.3,0.31456]
[1736843255397,0.31459,3180.2,3180.1,0.31459]
[1736843255601,0.31457,3180.4,3180.3,0.31457]
[1736843255790,0.4498,3180.5,3179.9,4.44812]
[1736843256099,0.4498,3180.5,3180.4,0.31456]
[1736843256294,3.52234,3180.7,3180.1,0.78647]
[1736843256490,3.52234,3180.7,3180.6,0.31454]
[1736843258699,3.52233,3180.7,3180.6,0.31454]
[1736843259698,3.2078,3180.7,3180.6,0.31454]
[1736843260889,0.31452,3180.9,3180.5,0.475]
[1736843261096,0.31452,3180.9,3180.8,0.31452]
[1736843261793,0.4816,3181.0,3180.6,0.78636]
[1736843262000,0.4966,3181.1,3181.0,0.3145]
[1736843262301,0.81109,3181.1,3181.0,0.17271692]
[1736843264901,0.31452,3180.9,3180.8,0.31451]
[1736843265494,0.31452,3180.8,3180.7,3.52232]
[1736843265694,0.81212,3180.8,3180.7,3.52232]
[1736843266003,0.81212,3180.8,3180.7,0.31452]
[1736843266605,0.31454,3180.7,3180.6,0.31453]
[1736843267700,0.31454,3180.7,3180.3,0.78643]
[1736843267701,0.31457,3180.4,3180.3,0.31456]
[1736843267900,0.31457,3180.3,3180.2,3.52238]
[1736843268096,1.24467,3180.3,3180.2,3.52238]
[1736843270804,0.4878,3180.6,3180.2,3.2078]
[1736843271004,0.31456,3180.6,3180.5,0.31455]
[1736843272200,0.31456,3180.6,3180.5,0.17384774]
[1736843276511,0.31456,3180.4,3180.3,0.31457]
[1736843276809,2.81135814,3180.4,3180.3,0.31457]
[1736843277306,2.49679814,3180.4,3180.3,0.31457]
[1736843277508,0.31456,3180.4,3180.3,0.31457]
[1736843278602,0.31456,3180.4,3180.2,3.2078]
[1736843278603,0.31457,3180.3,3180.2,0.31457]
[1736843282120,2.49679814,3180.4,3179.8,4.45054]
[1736843282415,0.3146,3180.1,3180.0,0.31459]
[1736843282813,0.809,3180.1,3180.0,0.31459]
[1736843283117,0.4944,3180.1,3180.0,0.31459]
[1736843283917,0.80899,3180.1,3180.0,0.31459]
[1736843284310,0.31461,3179.9,3179.8,3.2078]
[1736843284510,3.77768814,3180.1,3179.7,0.31462]
[1736843284708,3.27521814,3179.8,3179.7,0.31462]
[1736843286114,2.96059814,3179.8,3179.7,0.31462]
[1736843286315,3.27521814,3179.8,3179.7,0.31462]
[1736843287709,0.78959263,3180.1,3179.4,3.6979]
[1736843287914,3.2078,3180.6,3179.9,2.49679814]
[1736843288113,3.2078,3180.6,3180.5,0.31455]
[1736843288317,3.52234,3180.6,3180.5,0.31455]
[1736843288509,3.2078,3180.6,3180.5,0.31455]
[1736843294926,1.08471345,3180.9,3180.8,0.31452]
[1736843295123,0.78962,3180.9,3180.8,0.16242692]
[1736843296828,0.31454,3180.8,3180.7,0.31453]
[1736843298124,0.4751,3180.9,3180.4,0.78641]
[1736843298322,0.4751,3180.9,3180.8,0.31452]
[1736843298916,3.7065,3181.2,3180.8,0.31452]
[1736843299120,4.49119,3181.2,3181.1,0.31449]
[1736843301932,0.3145,3181.1,3181.0,0.31449]
[1736843303031,4.1767,3181.2,3180.8,0.4572]
[1736843303330,4.49119,3181.2,3181.1,0.31449]
[1736843303930,4.1767,3181.2,3181.1,0.31449]
[1736843304324,0.9689,3181.2,3181.1,0.31449]
[1736843304525,3.2078,3181.6,3181.5,0.31445]
[1736843308931,5.70459814,3181.6,3181.3,0.31446]
[1736843309130,6.49071814,3181.6,3181.1,3.2078]
[1736843309434,0.31448,3181.3,3181.2,0.31447]
[1736843309632,0.31448,3181.2,3181.1,3.52229]
[1736843309836,1.75198,3181.2,3181.1,3.2078]
[1736843310229,1.75198,3181.2,3181.1,3.52229]
[1736843310626,0.31453,3180.8,3180.7,3.2078]
[1736843310832,0.31455,3180.6,3180.5,0.31454]
[1736843311529,0.31458,3180.3,3180.2,0.31457]
[1736843312734,0.31458,3180.2,3180.1,3.52239]
[1736843314036,2.96069814,3180.5,3180.1,3.2078]
[1736843314235,0.31458,3180.3,3180.2,0.31456]
[1736843314440,2.96069814,3180.5,3180.3,0.31456]
[1736843314441,0.31457,3180.4,3180.3,0.31456]
[1736843315533,3.27525814,3180.5,3180.4,0.31456]
[1736843316432,0.31458,3180.2,3180.1,3.52239]
[1736843317437,0.31457,3180.4,3180.3,0.31456]
[1736843318032,0.31456,3180.5,3180.4,0.31455]
[1736843318234,0.987,3180.6,3180.5,0.31455]
[1736843318235,1.30155,3180.6,3180.5,0.31455]
[1736843319338,0.80725,3180.6,3180.5,0.31455]
[1736843320238,0.4927,3180.6,3180.5,0.31455]
[1736843320538,0.80724,3180.6,3180.5,0.31455]
[1736843321040,0.77574,3180.7,3180.6,0.31454]
[1736843321339,0.77574,3180.7,3180.3,0.78643]
[1736843321340,0.76733,3180.9,3180.8,0.31452]
[1736843321539,0.76733,3180.9,3180.8,0.16364923]
[1736843323344,0.31455,3180.5,3180.4,0.80866]
[1736843324238,0.31455,3180.5,3180.4,0.31456]
[1736843324842,0.77335,3180.5,3180.4,0.31456]
[1736843326340,0.31459,3180.3,3180.2,0.31457]
[1736843330643,0.78626,3181.0,3180.1,0.78647]
[1736843330840,0.80793,3180.8,3180.7,0.31453]
[1736843331046,0.31453,3180.8,3180.7,0.31453]
[1736843331644,0.76732,3180.9,3180.8,0.31452]
[1736843335947,0.76732,3180.9,3180.4,0.31455]
[1736843335948,0.31456,3180.5,3180.4,0.31455]
[1736843336249,0.31456,3180.4,3180.3,3.52236]
[1736843336450,0.78506,3180.4,3180.3,0.31456]
[1736843337548,0.78506,3180.4,3180.1,0.4992]
[1736843337549,2.96729814,3180.4,3179.9,3.2078]
[1736843337749,0.3146,3180.1,3180.0,0.31459]
[1736843342055,0.31459,3180.2,3180.1,0.31458]
[1736843344163,3.2078,3180.3,3179.8,0.78654]
[1736843344361,3.2078,3180.3,3180.2,0.31458]
[1736843345557,0.4536,3180.7,3180.0,3.2078]
[1736843345762,0.76814,3180.7,3180.6,0.31454]
[1736843345960,0.76814,3180.7,3180.6,0.16605818]
[1736843347170,0.4536,3180.7,3180.6,0.16605818]
[1736843348056,0.31449,3181.1,3181.0,0.31449]
[1736843349064,4.1102,3181.2,3181.1,0.31449]
[1736843349065,4.42469,3181.2,3181.1,0.31449]
[1736843349259,4.42469,3181.2,3181.1,0.19550795]
[1736843349660,4.1102,3181.2,3181.1,0.19550795]
[1736843350061,3.6605,3181.2,3181.1,0.19550795]
[1736843350563,3.2078,3181.2,3181.1,0.19550795]
[1736843352471,3.52228,3181.2,3181.1,0.19550795]
[1736843354469,0.31451,3181.0,3180.9,0.3145]
[1736843355061,0.80291,3181.0,3180.9,0.3145]
[1736843355870,0.4884,3181.0,3180.6,3.2078]
[1736843356069,0.4617,3180.9,3180.6,3.2078]
[1736843356272,0.31453,3180.7,3180.6,3.52233]
[1736843356773,0.31453,3180.7,3180.6,3.52234]
[1736843357371,0.31453,3180.7,3180.6,3.2078]
[1736843357571,0.31453,3180.7,3180.6,3.52234]
[1736843362485,0.31453,3180.7,3180.6,0.31454]
[1736843365984,0.31453,3180.7,3180.6,0.16725067]
[1736843371077,1.24799,3180.9,3180.2,0.78645]
[1736843371279,0.31456,3180.5,3180.4,0.31455]
[1736843372084,0.31458,3180.3,3180.2,0.31456]
[1736843372285,0.78757,3180.4,3180.3,0.31457]
[1736843372480,0.473,3180.4,3180.3,0.31457]
[1736843372681,0.78756,3180.4,3180.3,0.31457]
[1736843373087,0.473,3180.4,3180.3,0.31457]
[1736843373386,0.31456,3180.5,3180.4,0.31456]
[1736843374786,0.31455,3180.7,3180.6,0.31453]
[1736843376092,0.31455,3180.7,3180.6,0.16843217]
[1736843376792,0.489,3180.8,3180.4,0.78641]
[1736843376991,0.80353,3180.8,3180.7,0.31453]
[1736843377791,0.489,3180.8,3180.7,0.31453]
[1736843378088,0.80352,3180.8,3180.7,0.31453]
[1736843378293,0.489,3180.8,3180.7,0.31453]
[1736843378884,0.80352,3180.8,3180.7,0.31453]
[1736843381297,0.77622,3180.9,3180.8,0.31452]
[1736843381895,3.6604,3181.2,3180.7,0.4882]
[1736843382101,3.2078,3181.2,3181.1,0.31449]
[1736843382902,0.4496,3181.3,3180.9,3.99408]
[1736843383103,0.4496,3181.3,3181.2,0.31448]
[1736843383300,2.99349814,3181.6,3181.0,0.78626]
[1736843383494,3.76935814,3181.6,3181.5,0.31445]
[1736843383799,1.27256,3181.6,3181.2,0.78621]
[1736843384199,1.27256,3181.6,3181.5,0.31445]
[1736843384603,0.9581,3181.6,3181.1,0.9829]
[1736843384805,0.31447,3181.5,3181.4,0.31445]
[1736843386102,0.31447,3181.5,3181.4,0.1663994]
[1736843388910,0.31448,3181.3,3181.2,0.31447]
[1736843390197,3.45489814,3181.6,3181.1,0.9829]
[1736843390506,0.77584,3181.6,3181.5,0.31445]
[1736843396802,0.4614,3181.6,3181.5,0.31445]
[1736843397009,0.77584,3181.6,3181.5,0.31445]
[1736843398898,0.4614,3181.6,3181.5,0.31445]
[1736843399105,0.31444,3181.7,3181.6,0.31443]
[1736843400207,0.78133,3181.8,3181.7,0.16759768]
[1736843400502,0.78133,3181.8,3181.5,0.78614]
[1736843400702,0.78133,3181.8,3181.7,0.31443]
[1736843400903,0.78133,3181.8,3181.4,2.01728724]
[1736843401105,0.4616,3181.9,3181.5,0.78614]
[1736843401303,3.2078,3182.2,3182.1,0.31439]
[1736843401702,0.3144,3182.2,3182.1,0.31439]
[1736843401900,0.78599,3182.1,3181.4,3.2078]
[1736843402110,0.31446,3181.6,3181.5,0.31444]
[1736843403817,0.31444,3181.7,3181.6,0.31443]
[1736843404716,5.70459814,3182.0,3181.8,0.31441]
[1736843404717,0.31442,3181.9,3181.8,0.31441]
[1736843404918,3.52221,3182.0,3181.9,0.31441]
[1736843405219,0.31441,3182.0,3181.9,0.31441]
[1736843405412,0.452,3182.1,3181.5,0.78613]
[1736843405709,0.9615,3182.2,3182.1,0.31439]
[1736843405914,1.27588,3182.2,3182.1,0.31439]
[1736843406115,0.31442,3182.0,3181.9,0.3144]
[1736843406816,0.3144,3182.1,3182.0,0.31439]
[1736843407220,1.27589,3182.2,3182.1,0.31439]
[1736843407422,0.9615,3182.2,3182.1,0.31439]
[1736843408817,0.4635,3182.5,3182.4,0.31436]
[1736843409222,0.4773,3182.6,3182.2,3.2078]
[1736843409223,0.4773,3182.6,3182.5,0.31435]
[1736843411216,0.4629,3183.0,3182.9,0.31431]
[1736843411519,3.2078,3183.6,3183.5,0.31426]
[1736843411721,4.00815,3183.6,3183.5,0.31426]
[1736843412421,0.31426,3183.5,3183.4,0.31426]
[1736843412920,4.00815,3183.6,3183.5,0.31426]
[1736843413216,4.00815,3183.6,3183.5,0.17394413]
[1736843413414,3.6939,3183.6,3183.5,0.17394413]
[1736843413621,0.80035,3183.6,3183.5,0.17394413]
[1736843414033,0.4861,3183.6,3183.5,0.17394413]
[1736843414425,0.80035,3183.6,3183.5,0.17394413]
[1736843414624,0.4861,3183.6,3183.0,4.45416]
[1736843414828,2.81109814,3183.1,3183.0,3.5221]
[1736843415225,5.70459814,3183.1,3182.5,3.2078]
[1736843415434,0.31432,3182.9,3182.8,0.31432]
[1736843415735,1.4615,3183.0,3182.5,3.2078]
[1736843415929,1.77581,3183.0,3182.9,0.31431]
[1736843416528,0.31432,3182.9,3182.8,0.31432]
[1736843417129,1.77581,3183.0,3182.9,0.31431]
[1736843417434,1.4615,3183.0,3182.9,0.31431]
[1736843418432,1.7758,3183.0,3182.9,0.31431]
[1736843418632,1.4615,3183.0,3182.9,0.31431]
[1736843418937,1.4615,3183.0,3182.9,0.20701767]
[1736843419532,1.7758,3183.0,3182.5,0.78588]
[1736843419831,3.2078,3182.6,3182.0,1.27199]
[1736843420032,2.81115814,3182.5,3182.4,0.31436]
[1736843420233,2.97859814,3182.5,3182.4,0.31436]
[1736843420434,3.29294814,3182.5,3182.4,0.31436]
[1736843420631,2.97859814,3182.5,3182.4,0.31436]
[1736843420838,2.97859814,3182.5,3181.9,0.4707]
[1736843420839,2.97859814,3182.5,3182.3,0.31437]
[1736843421039,0.9473,3182.4,3181.6,0.486]
[1736843421337,3.52219,3182.2,3182.1,0.31439]
[1736843422532,3.2078,3182.2,3182.1,0.31439]
[1736843423031,3.52218,3182.2,3181.8,0.78605]
[1736843423236,3.2078,3182.2,3182.1,0.31439]
[1736843424028,3.52218,3182.2,3182.1,0.31439]
[1736843424230,3.2078,3182.2,3182.1,0.31439]
[1736843425937,0.9473,3182.4,3182.0,2.49679814]
[1736843426241,4.55428,3183.6,3182.0,2.49679814]
[1736843426242,3.2078,3183.0,3182.3,2.49679814]
[1736843426541,3.2078,3183.0,3182.9,0.18011956]
[1736843426839,3.6936,3183.0,3182.6,0.78585]
[1736843427030,3.6936,3183.0,3182.9,0.31431]
[1736843431036,0.4858,3183.0,3182.9,0.31431]
[1736843432031,3.6936,3183.0,3182.5,0.78587]
[1736843432242,3.2078,3182.6,3181.6,3.2078]
[1736843432542,0.3144,3182.1,3182.0,0.31439]
[1736843432742,2.49679814,3182.1,3181.5,0.4536]
[1736843433053,2.49679814,3182.1,3181.2,3.7004]
[1736843433054,0.31443,3181.8,3181.7,0.31442]
[1736843433649,3.2078,3181.8,3181.2,3.7004]
[1736843433845,0.31445,3181.6,3181.5,0.31444]
[1736843434449,0.31444,3181.7,3181.6,0.31443]
[1736843435049,0.31445,3181.6,3181.5,0.31444]
[1736843435350,3.2078,3181.8,3181.7,0.31443]
[1736843435539,3.2078,3181.8,3181.7,0.18418732]
[1736843435743,3.2078,3181.8,3181.4,3.28294814]
[1736843436046,3.2078,3181.8,3181.7,0.18040501]
[1736843440650,3.2078,3181.8,3181.7,2.67720315]
[1736843440854,3.2078,3182.4,3182.3,0.31437]
[1736843444751,3.2078,3182.9,3182.3,2.49679814]
[1736843444957,3.2078,3182.9,3182.8,0.31432]
[1736843445444,3.2078,3182.9,3182.8,0.18524092]
[1736843446555,3.2078,3182.9,3182.8,0.18271967]
[1736843446753,3.2078,3182.9,3182.8,0.66661967]
[1736843448255,0.474,3183.5,3183.4,0.31427]
[1736843448564,3.52201,3184.0,3183.9,0.31422]
[1736843448760,4.01481,3184.0,3183.9,0.31422]
[1736843448954,3.7006,3184.0,3183.5,0.78565]
[1736843449151,3.7006,3184.0,3183.4,2.49679814]
[1736843449355,3.7006,3184.0,3183.9,0.31422]
[1736843449958,3.7006,3184.0,3183.7,1.74964787]
[1736843450160,3.7006,3184.0,3183.9,0.31422]
[1736843450858,3.2078,3184.0,3183.9,0.31422]
[1736843452962,0.31418,3184.3,3184.2,0.31419]
[1736843453150,0.31417,3184.4,3184.3,0.31417]
[1736843453857,0.4578,3184.5,3184.4,0.31417]
[1736843454056,3.2078,3184.6,3184.3,2.49679814]
[1736843454365,3.2078,3184.6,3184.5,0.31416]
[1736843455164,0.78613,3184.8,3184.6,0.31414]
[1736843455363,0.472,3184.8,3184.7,0.31414]
[1736843455965,0.472,3184.8,3184.7,0.1862783]
[1736843456162,0.472,3184.8,3184.3,1.50459499]
[1736843456357,0.472,3184.8,3184.7,0.31414]
[1736843456866,0.78613,3184.8,3184.7,0.31414]
[1736843457363,0.78613,3184.8,3184.6,0.20874421]
[1736843457860,3.2078,3184.7,3184.1,0.4819]
[1736843458056,0.77335,3184.6,3184.4,0.31416]
[1736843458263,0.77335,3184.6,3184.1,0.4819]
[1736843458661,0.77335,3184.6,3184.4,0.31416]
[1736843459157,0.77335,3184.6,3184.5,0.31416]
[1736843459463,0.4592,3184.6,3184.5,0.31416]
[1736843462062,0.4795,3185.3,3185.0,0.31411]
[1736843462063,3.6999,3185.1,3185.0,0.31411]
[1736843463757,4.014,3185.1,3185.0,0.31411]
[1736843464366,3.6999,3185.1,3185.0,0.31411]
[1736843464566,4.014,3185.1,3185.0,0.31411]
[1736843465561,3.6999,3185.1,3184.4,3.6781]
[1736843465763,0.31415,3184.6,3184.5,0.31415]
[1736843465973,0.31414,3184.7,3184.6,0.31414]
[1736843466170,0.78528,3185.0,3184.4,3.2078]
[1736843466171,0.31415,3184.6,3184.5,0.31415]
[1736843466364,0.4789,3184.6,3184.5,0.31415]
[1736843466771,3.2078,3185.1,3185.0,0.31411]
[1736843466772,3.5219,3185.1,3185.0,0.31411]
[1736843467173,3.2078,3185.1,3185.0,0.31411]
[1736843468374,3.5219,3185.1,3185.0,0.31411]
[1736843468859,3.5219,3185.1,3184.7,0.31412]
[1736843468860,0.31413,3184.8,3184.7,0.31412]
[1736843469064,0.31412,3185.0,3184.9,0.31411]
[1736843469268,3.2078,3185.1,3184.4,3.7057]
[1736843469467,0.31413,3184.9,3184.8,0.31412]
[1736843471274,0.31413,3184.9,3184.8,0.18729855]
[1736843472075,3.2078,3185.1,3184.9,0.31411]
[1736843472076,0.31411,3185.0,3184.9,0.31411]
[1736843473474,3.2078,3185.1,3184.6,0.78538]
[1736843473771,3.2078,3185.1,3185.0,0.31411]
[1736843473972,3.5219,3185.1,3185.0,0.31411]
[1736843474164,3.2078,3185.1,3185.0,0.31411]
[1736843474770,3.2078,3185.1,3185.0,0.20959182]
[1736843475169,3.2078,3185.1,3184.6,0.78538]
[1736843475375,0.31412,3185.0,3184.9,0.20157405]
[1736843475861,3.2078,3185.1,3184.6,0.78538]
[1736843476065,3.52191,3185.1,3185.0,0.31411]
[1736843476265,3.52191,3185.1,3185.0,0.18830914]
[1736843477365,3.97771,3185.1,3185.0,0.18830914]
[1736843478473,3.6636,3185.1,3185.0,0.18830914]
[1736843479071,3.9777,3185.1,3185.0,0.18830914]
[1736843480575,0.7699,3185.1,3185.0,0.18830914]
[1736843480777,3.9777,3185.1,3185.0,0.18830914]
[1736843481380,3.9777,3185.1,3185.0,0.31411]
[1736843481981,3.2078,3185.1,3185.0,0.31411]
[1736843482186,3.5219,3185.1,3185.0,0.31411]
[1736843482477,3.2078,3185.1,3185.0,0.31411]
[1736843483284,3.5219,3185.1,3185.0,0.31411]
[1736843483478,4.0045,3185.1,3185.0,0.31411]
[1736843483683,4.0045,3185.1,3185.0,0.20403554]
[1736843485979,0.7967,3185.1,3185.0,0.31411]
[1736843486182,4.0045,3185.1,3185.0,0.31411]
[1736843486775,4.0045,3185.1,3185.0,0.20492411]
[1736843487184,3.6904,3185.1,3184.6,0.78538]
[1736843487382,0.77602,3185.0,3184.9,0.31411]
[1736843488483,0.4619,3185.0,3184.5,0.4562]
[1736843488677,0.4619,3185.0,3184.3,0.31417]
[1736843488678,0.31418,3184.4,3184.3,0.31417]
[1736843488880,0.31419,3184.3,3184.2,0.31418]
[1736843489187,0.31421,3184.0,3183.9,0.31421]
[1736843489686,4.01478,3184.3,3184.2,0.31419]
[1736843490188,4.3095635,3184.3,3184.2,0.14992237]
[1736843490683,4.3095635,3184.3,3183.8,1.28426]
[1736843490684,3.9953835,3184.3,3183.8,0.4987]
[1736843490886,0.31421,3184.0,3183.9,0.3142]
[1736843491084,0.2947835,3184.0,3183.9,0.3142]
[1736843491384,0.6089935,3184.0,3183.6,3.0375377]
[1736843491680,0.2947835,3183.9,3183.6,3.0375377]
[1736843491888,0.31421,3184.0,3183.6,1.29262951]
[1736843491889,0.2947835,3183.8,3183.6,1.29262951]
[1736843492080,0.2947835,3183.7,3183.6,1.29262951]
[1736843492385,0.2947835,3183.7,3183.6,1.60687951]
[1736843493089,0.31422,3183.9,3183.6,1.29262951]
[1736843493278,0.31422,3183.9,3183.8,0.31423]
[1736843493983,0.31422,3183.9,3183.8,0.14061734]
[1736843495480,0.31421,3184.0,3183.6,1.29262951]
[1736843495682,0.31421,3184.0,3183.9,0.3142]
[1736843496987,0.31424,3183.8,3183.7,0.31423]
[1736843497286,0.31424,3183.7,3183.6,1.29262951]
[1736843497492,0.31427,3183.4,3183.3,0.31426]
[1736843498178,0.31427,3183.4,3183.0,3.6932]
[1736843498179,0.4534,3183.6,3183.0,3.6932]
[1736843498382,0.76754,3183.7,3183.6,0.31425]
[1736843499999,0.31426,3183.5,3183.4,0.31426]
[1736843500487,1.0623235,3183.7,3183.6,0.31425]
[1736843500683,0.76754,3183.7,3183.6,0.31425]
[1736843501092,0.31424,3183.7,3183.6,0.31425]
[1736843501389,0.31424,3183.7,3183.6,0.15866215]
[1736843502889,0.31426,3183.6,3183.5,0.31425]
[1736843503893,3.6846,3183.8,3183.1,3.28252814]
[1736843504081,0.31427,3183.5,3183.4,0.31425]
[1736843504690,3.6846,3183.8,3183.1,3.28252814]
[1736843504891,0.31425,3183.6,3183.5,0.31424]
[1736843507595,3.6846,3183.8,3183.1,2.49679814]
[1736843507795,0.31429,3183.2,3183.1,0.31429]
[1736843508099,0.31429,3183.3,3183.2,0.31428]
[1736843508294,0.6090735,3183.3,3183.2,0.31428]
[1736843508493,0.3143,3183.1,3183.0,0.7997]
[1736843508800,0.3143,3183.1,3183.0,0.3143]
[1736843508998,0.2947835,3183.1,3182.7,1.4275]
[1736843509303,0.2947835,3183.0,3182.6,3.52214]
[1736843509596,0.31433,3182.7,3182.6,3.2078]
[1736843509802,0.2947835,3182.7,3182.2,2.6975]
[1736843510000,0.31436,3182.5,3182.4,0.31435]
[1736843510494,0.31437,3182.5,3182.4,0.31436]
[1736843511402,0.31437,3182.5,3182.4,0.15991507]
[1736843511697,3.5025835,3182.7,3182.6,0.31434]
[1736843511897,3.2078,3182.7,3182.6,0.31434]
[1736843512093,0.2947835,3183.1,3182.6,3.2078]
[1736843512399,0.3143,3183.1,3183.0,0.3143]
[1736843512901,0.2947835,3183.1,3182.7,0.4884]
[1736843513101,0.7609835,3183.0,3182.7,0.4884]
[1736843513297,0.2947835,3182.9,3182.8,0.31432]
[1736843513505,0.6090935,3182.9,3182.8,0.31432]
[1736843515999,0.2947835,3182.9,3182.7,0.4884]
[1736843516198,0.7748835,3182.8,3182.6,1.27]
[1736843516400,0.31433,3182.7,3182.6,1.58434]
[1736843516800,0.79443,3182.8,3182.7,0.31433]
[1736843517205,0.4801,3182.8,3182.4,3.6646]
[1736843517504,0.31435,3182.6,3182.5,0.31435]
[1736843517903,0.4801,3182.8,3182.4,3.2078]
[1736843518203,0.31437,3182.4,3182.3,0.31437]
[1736843518708,0.31433,3182.7,3182.6,0.31433]
[1736843520911,3.2078,3182.9,3182.8,0.31432]
[1736843521411,3.52211,3182.9,3182.8,0.31432]
[1736843521606,3.2078,3182.9,3182.4,1.383]
[1736843521805,0.31434,3182.7,3182.6,0.31434]
[1736843522204,0.31435,3182.5,3182.4,1.69736]
[1736843522404,0.31435,3182.5,3182.4,0.4539]
[1736843522605,0.31435,3182.5,3182.4,0.31436]
[1736843523799,0.31437,3182.4,3182.3,0.31437]
[1736843524401,0.78583,3182.8,3182.2,3.2078]
[1736843524609,0.31436,3182.5,3182.4,0.31436]
[1736843525209,0.31437,3182.4,3182.3,0.31437]
[1736843525513,0.78583,3182.8,3182.2,3.2078]
[1736843525712,0.4909,3182.6,3182.2,3.2078]
[1736843525915,0.31435,3182.6,3182.5,0.31435]
[1736843526710,0.31437,3182.3,3182.2,3.52218]
[1736843527010,0.48,3182.5,3182.2,3.52218]
[1736843527216,0.31437,3182.4,3182.3,0.31437]
[1736843527419,0.48,3182.5,3182.2,3.2078]
[1736843527609,0.79437,3182.5,3182.4,0.31436]
[1736843529217,3.5025835,3182.9,3182.8,0.31432]
[1736843529409,3.2078,3182.9,3182.8,0.31432]
[1736843529604,3.52211,3182.9,3182.8,0.31432]
[1736843530507,3.2078,3182.9,3182.8,0.31432]
[1736843530816,3.52211,3182.9,3182.8,0.31432]
[1736843531506,3.52211,3182.9,3182.8,0.16115127]
[1736843531715,3.2078,3182.9,3182.8,0.16115127]
[1736843532816,3.52211,3182.9,3182.8,0.16115127]
[1736843537523,0.31436,3182.5,3182.4,0.31435]
[1736843538116,0.31436,3182.4,3182.3,3.29036]
[1736843538721,0.4679,3182.6,3182.3,2.976]
[1736843539019,0.31436,3182.4,3182.3,2.976]
[1736843540922,0.31436,3182.4,3181.3,0.69439888]
[1736843540923,0.31444,3181.7,3181.6,0.31444]
[1736843541117,0.31444,3181.6,3181.5,0.41445]
[1736843541725,0.31444,3181.6,3181.5,0.1]
[1736843541918,3.52224,3181.6,3181.5,0.1]
[1736843543424,3.52224,3181.6,3181.3,0.69439888]
[1736843543425,0.31456,3180.4,3180.3,0.9373]
[1736843543627,0.31456,3180.4,3179.6,0.31463]
[1736843543628,0.31461,3180.0,3179.6,0.31463]
[1736843543925,3.2078,3179.8,3179.5,0.4508]
[1736843544129,3.2078,3179.8,3179.5,0.76544]
[1736843544328,3.2078,3179.8,3179.5,0.4508]
[1736843544631,2.49679814,3179.6,3178.8,1.27]
[1736843544826,0.31472,3178.8,3178.4,0.31476]
[1736843545130,0.31475,3178.6,3178.3,3.2078]
[1736843545326,5.70459814,3179.0,3178.3,3.2078]
[1736843545627,0.31471,3178.9,3178.6,0.31473]
[1736843545829,0.31471,3178.9,3178.5,2.81154814]
[1736843546723,3.2078,3179.0,3178.6,0.31473]
[1736843546924,3.5225,3179.0,3178.5,2.81153814]
[1736843547124,3.5225,3179.0,3178.5,2.49679814]
[1736843547338,3.5225,3179.0,3178.6,0.31474]
[1736843547821,3.52251,3179.0,3178.6,0.31474]
[1736843548221,3.2078,3179.0,3178.4,0.4547]
[1736843548427,3.2078,3179.0,3178.8,0.31472]
[1736843549120,0.31473,3178.7,3178.4,0.4547]
[1736843549431,2.49679814,3178.9,3178.4,0.76946]
[1736843549432,0.31472,3178.8,3178.4,0.76946]
[1736843549826,2.49679814,3178.9,3178.4,0.4547]
[1736843550122,3.52253,3178.8,3178.4,0.76946]
[1736843550326,0.31474,3178.7,3178.4,0.4547]
[1736843550529,3.2078,3178.8,3178.0,0.4516]
[1736843550724,0.31474,3178.7,3178.1,0.31479]
[1736843550925,3.2078,3178.8,3178.2,0.31477]
[1736843551126,3.2078,3178.8,3178.4,0.31475]
[1736843551127,3.52252,3178.8,3178.4,0.31475]
[1736843551624,3.52252,3178.8,3178.3,0.31476]
[1736843551829,0.31474,3178.7,3178.2,0.31477]